fUST/lending_fUST_20250103
["ID","MTS","AMOUNT","RATE_DAILY","PERIOD"]
[347496579,1735877434444,-504.3627612,0.00019178,2]
[347496581,1735877434454,-503.14864669,0.00019178,2]
[347496583,1735877434463,-522.79769182,0.00019178,2]
[347496585,1735877434473,-506.98996197,0.00019178,2]
[347496587,1735877434482,-501.38698068,0.00019178,2]
[347496589,1735877434492,-500.0,0.00019178,2]
[347496591,1735877434501,-500.0,0.00019178,2]
[347496593,1735877434511,-500.0,0.00019178,2]
[347496594,1735877434521,-500.0,0.00019178,2]
[347496595,1735877434530,-503.79447849,0.00019178,2]
[347496596,1735877434540,-517.91,0.00019178,2]
[347496597,1735877434550,-502.09668146,0.00019178,2]
[347496598,1735877434559,-503.72548511,0.00019178,2]
[347496599,1735877434569,-508.55742945,0.00019178,2]
[347496600,1735877434579,-501.69345585,0.00019178,2]
[347496601,1735877434588,-502.62020684,0.00019178,2]
[347496602,1735877434598,-500.0,0.00019178,2]
[347496603,1735877434607,-502.62430966,0.00019178,2]
[347496604,1735877434617,-501.66763953,0.00019178,2]
[347496605,1735877434627,-504.72461249,0.00019178,2]
[347496606,1735877434636,-501.50175634,0.00019178,2]
[347496607,1735877434646,-500.82777136,0.00019178,2]
[347496608,1735877434656,-501.80479659,0.00019178,2]
[347496609,1735877434665,-501.817178,0.00019178,2]
[347496610,1735877434674,-500.0,0.00019178,2]
[347496611,1735877434684,-503.47949407,0.00019178,2]
[347496612,1735877434693,-500.86620934,0.00019178,2]
[347496613,1735877434703,-501.76002226,0.00019178,2]
[347496614,1735877434712,-502.68227963,0.00019178,2]
[347496615,1735877434721,-501.95555909,0.00019178,2]
[347496616,1735877434736,-500.0,0.00019178,2]
[347496617,1735877434746,-510.5707723,0.00019178,2]
[347496618,1735877434755,-501.88020916,0.00019178,2]
[347496619,1735877434764,-500.0,0.00019178,2]
[347496620,1735877434773,-501.14967073,0.00019178,2]
[347496621,1735877434781,-503.23851471,0.00019178,2]
[347496622,1735877434790,-508.22740956,0.00019178,2]
[347496623,1735877434800,-514.1361965,0.00019178,2]
[347496624,1735877434809,-500.0,0.00019178,2]
[347496625,1735877434818,-500.0,0.00019178,2]
[347496626,1735877434827,-506.18760986,0.00019178,2]
[347496627,1735877434837,-500.80281897,0.00019178,2]
[347496628,1735877434847,-502.27336736,0.00019178,2]
[347496629,1735877434856,-796.35,0.00019178,2]
[347496630,1735877434866,-502.42796506,0.00019178,2]
[347496631,1735877434875,-500.0,0.00019178,2]
[347496632,1735877434884,-500.0,0.00019178,2]
[347496633,1735877434894,-500.0,0.00019178,2]
[347496634,1735877434903,-500.95583275,0.00019178,2]
[347496635,1735877434912,-501.19887951,0.00019178,2]
[347496636,1735877434923,-502.2626583,0.00019178,2]
[347496637,1735877434932,-500.0,0.00019178,2]
[347496638,1735877434941,-501.76406984,0.00019178,2]
[347496639,1735877434951,-500.0,0.00019178,2]
[347496640,1735877434960,-503.89997118,0.00019178,2]
[347496641,1735877434969,-500.94684405,0.00019178,2]
[347496642,1735877434979,-501.59875073,0.00019178,2]
[347496643,1735877434990,-501.8588692,0.00019178,2]
[347496644,1735877434999,-223.32981154,0.00019178,2]
[347496645,1735877435008,-501.49675051,0.00019178,2]
[347496646,1735877435017,-500.0,0.00019178,2]
[347496647,1735877435027,-500.0,0.00019178,2]
[347496648,1735877435037,-500.0,0.00019178,2]
[347496649,1735877435046,-214.817055,0.00019178,2]
[347496650,1735877435055,-502.57743346,0.00019178,2]
[347496651,1735877435066,-500.0,0.00019178,2]
[347496652,1735877435076,-500.78587698,0.00019178,2]
[347496653,1735877435085,-502.02167406,0.00019178,2]
[347496654,1735877435094,-501.67731534,0.00019178,2]
[347496655,1735877435103,-502.89862748,0.00019178,2]
[347496656,1735877435113,-511.91222371,0.00019178,2]
[347496657,1735877435122,-500.0,0.00019178,2]
[347496658,1735877435131,-500.0,0.00019178,2]
[347496659,1735877435140,-501.10519708,0.00019178,2]
[347496660,1735877435150,-504.86288445,0.00019178,2]
[347496661,1735877435159,-500.60742611,0.00019178,2]
[347496662,1735877435169,-500.0,0.00019178,2]
[347496663,1735877435178,-502.98594255,0.00019178,2]
[347496664,1735877435188,-503.46794266,0.00019178,2]
[347496665,1735877435197,-500.0,0.00019178,2]
[347496666,1735877435207,-507.02141386,0.00019178,2]
[347496667,1735877435216,-502.47377584,0.00019178,2]
[347496668,1735877435225,-501.73337191,0.00019178,2]
[347496669,1735877435235,-500.0,0.00019178,2]
[347496670,1735877435244,-799.97,0.00019178,2]
[347496671,1735877435254,-500.0,0.00019178,2]
[347496672,1735877435263,-899.72,0.00019178,2]
[347496673,1735877435273,-151.0,0.00019178,2]
[347496674,1735877435282,-500.0,0.00019178,2]
[347496675,1735877435291,-500.0,0.00019178,2]
[347496676,1735877435300,-501.33837477,0.00019178,2]
[347496677,1735877435309,-503.28158629,0.00019178,2]
[347496678,1735877435319,-500.0,0.00019178,2]
[347496679,1735877435328,-504.35095435,0.00019178,2]
[347496680,1735877435337,-501.60602459,0.00019178,2]
[347496681,1735877435347,-503.33227377,0.00019178,2]
[347496682,1735877435357,-500.0,0.00019178,2]
[347496683,1735877435366,-500.0,0.00019178,2]
[347496684,1735877435376,-500.0,0.00019178,2]
[347496685,1735877435386,-502.47406998,0.00019178,2]
[347496686,1735877435394,-556.18,0.00019178,2]
[347496687,1735877435403,-524.4524063,0.00019178,2]
[347496688,1735877435413,-1039.79,0.00019178,2]
[347496689,1735877435422,-1039.79,0.00019178,2]
[347496690,1735877435431,-1039.79,0.00019178,2]
[347496691,1735877435441,-1039.79,0.00019178,2]
[347496692,1735877435450,-1039.79,0.00019178,2]
[347496693,1735877435460,-1039.79,0.00019178,2]
[347496694,1735877435469,-1039.79,0.00019178,2]
[347496695,1735877435480,-1039.79,0.00019178,2]
[347496696,1735877435489,-525.66,0.00019178,2]
[347496697,1735877435498,-500.0,0.00019178,2]
[347496698,1735877435507,-500.0,0.00019178,2]
[347496699,1735877435517,-500.0,0.00019178,2]
[347496700,1735877435526,-500.0,0.00019178,2]
[347496701,1735877435535,-500.0,0.00019178,2]
[347496702,1735877435544,-500.0,0.00019178,2]
[347496703,1735877435553,-504.04238459,0.00019178,2]
[347496704,1735877435563,-500.0,0.00019178,2]
[347496705,1735877435572,-500.0,0.00019178,2]
[347496706,1735877435581,-500.0,0.00019178,2]
[347496707,1735877435590,-303.19383461,0.00019178,2]
[347496708,1735877435600,-500.0,0.00019178,2]
[347496709,1735877435609,-500.0,0.00019178,2]
[347496710,1735877435618,-500.0,0.00019178,2]
[347496711,1735877435628,-500.0,0.00019178,2]
[347496712,1735877435637,-500.0,0.00019178,2]
[347496713,1735877435647,-501.98291967,0.00019178,2]
[347496714,1735877435656,-507.60036374,0.00019178,2]
[347496715,1735877435666,-500.0,0.00019178,2]
[347496716,1735877435675,-500.0,0.00019178,2]
[347496717,1735877435684,-597.54,0.00019178,2]
[347496718,1735877435694,-500.0,0.00019178,2]
[347496719,1735877435703,-3133.34,0.00019178,2]
[347496720,1735877435712,-500.0,0.00019178,2]
[347496721,1735877435721,-500.0,0.00019178,2]
[347496722,1735877435737,-500.0,0.00019178,2]
[347496723,1735877435747,-549.60829764,0.00019178,2]
[347496724,1735877435917,-500.0,0.00019178,2]
[347496725,1735877435927,-500.0,0.00019178,2]
[347496726,1735877435937,-500.0,0.00019178,2]
[347496727,1735877435946,-500.0,0.00019178,2]
[347496728,1735877435955,-543.17,0.00019178,2]
[347496729,1735877435964,-500.0,0.00019178,2]
[347496730,1735877435973,-500.0,0.00019178,2]
[347496731,1735877435985,-500.0,0.00019178,2]
[347496732,1735877435995,-500.0,0.00019178,2]
[347496733,1735877436004,-500.0,0.00019178,2]
[347496734,1735877436013,-500.0,0.00019178,2]
[347496735,1735877436022,-500.0,0.00019178,2]
[347496736,1735877436032,-502.91917384,0.00019178,2]
[347496737,1735877436041,-500.0,0.00019178,2]
[347496738,1735877436052,-151.0,0.00019178,2]
[347496739,1735877436062,-503.25228492,0.00019178,2]
[347496740,1735877436072,-3382.97,0.00019178,2]
[347496741,1735877436081,-500.0,0.00019178,2]
[347496742,1735877436090,-500.0,0.00019178,2]
[347496743,1735877436100,-504.76317426,0.00019178,2]
[347496744,1735877436109,-500.0,0.00019178,2]
[347496745,1735877436119,-151.0,0.00019178,2]
[347496746,1735877436128,-517.12090618,0.00019178,2]
[347496747,1735877436137,-1075.76,0.00019178,2]
[347496748,1735877436147,-500.0,0.00019178,2]
[347496749,1735877436156,-898.66,0.00019178,2]
[347496750,1735877436165,-393.24830411,0.00019178,2]
[347496751,1735877436174,-500.0,0.00019178,2]
[347496752,1735877436184,-500.0,0.00019178,2]
[347496753,1735877436193,-500.0,0.00019178,2]
[347496754,1735877436202,-500.0,0.00019178,2]
[347496755,1735877436211,-956.94,0.00019178,2]
[347496756,1735877436221,-505.21681151,0.00019178,2]
[347496757,1735877436233,-503.76182093,0.00019178,2]
[347496758,1735877436242,-25911.43,0.00019178,2]
[347496759,1735877436251,-1111.14,0.00019178,2]
[347496760,1735877436260,-504.76453535,0.00019178,2]
[347496761,1735877436269,-250.11231863,0.00019178,2]
[347496762,1735877436278,-500.0,0.00019178,2]
[347496763,1735877436288,-596.15,0.00019178,2]
[347496764,1735877436297,-501.66570955,0.00019178,2]
[347496765,1735877436306,-754.97,0.00019178,2]
[347496766,1735877436315,-500.0,0.00019178,2]
[347496767,1735877436325,-510.07343076,0.00019178,2]
[347496768,1735877436334,-503.99427488,0.00019178,2]
[347496769,1735877436343,-502.92901861,0.00019178,2]
[347496770,1735877436352,-1248.46,0.00019178,2]
[347496771,1735877436362,-2827.51,0.00019178,2]
[347496772,1735877436371,-501.59973454,0.00019178,2]
[347496773,1735877436380,-500.0,0.00019178,2]
[347496774,1735877436389,-570.18,0.00019178,2]
[347496775,1735877436398,-500.0,0.00019178,2]
[347496776,1735877436407,-990.36,0.00019178,2]
[347496777,1735877436416,-699.31,0.00019178,2]
[347496778,1735877436426,-501.9636998,0.00019178,2]
[347496779,1735877436435,-500.0,0.00019178,2]
[347496780,1735877436444,-500.0,0.00019178,2]
[347496781,1735877436453,-500.0,0.00019178,2]
[347496782,1735877436462,-487.70125909,0.00019178,2]
[347496783,1735877436471,-500.0,0.00019178,2]
[347496784,1735877436481,-500.0,0.00019178,2]
[347496785,1735877436489,-500.0,0.00019178,2]
[347496786,1735877436499,-516.56931029,0.00019178,2]
[347496787,1735877436508,-501.62962424,0.00019178,2]
[347496788,1735877436518,-500.0,0.00019178,2]
[347496789,1735877436527,-500.0,0.00019178,2]
[347496790,1735877436536,-500.0,0.00019178,2]
[347496791,1735877436545,-1126.67,0.00019178,2]
[347496792,1735877436554,-500.0,0.00019178,2]
[347496793,1735877436564,-581.99,0.00019178,2]
[347496794,1735877436573,-1778.15,0.00019178,2]
[347496795,1735877436583,-503.70279704,0.00019178,2]
[347496796,1735877436591,-504.37025455,0.00019178,2]
[347496797,1735877436600,-500.0,0.00019178,2]
[347496798,1735877436609,-387.21,0.00019178,2]
[347496799,1735877436619,-502.77031693,0.00019178,2]
[347496800,1735877436628,-501.3829215,0.00019178,2]
[347496801,1735877436637,-500.0,0.00019178,2]
[347496802,1735877436647,-1075.91,0.00019178,2]
[347496803,1735877436656,-537.54839231,0.00019178,2]
[347496804,1735877436666,-6463.31,0.00019178,2]
[347496805,1735877436675,-907.68,0.00019178,2]
[347496806,1735877436684,-500.0,0.00019178,2]
[347496807,1735877436693,-500.0,0.00019178,2]
[347496808,1735877436702,-500.0,0.00019178,2]
[347496809,1735877436711,-532.97,0.00019178,2]
[347496810,1735877436720,-500.0,0.00019178,2]
[347496811,1735877436731,-500.0,0.00019178,2]
[347496812,1735877436740,-508.36952129,0.00019178,2]
[347496813,1735877436749,-1987.78,0.00019178,2]
[347496814,1735877436758,-867.65,0.00019178,2]
[347496815,1735877436767,-500.0,0.00019178,2]
[347496816,1735877436776,-1784.67,0.00019178,2]
[347496817,1735877436785,-500.0,0.00019178,2]
[347496818,1735877436794,-9572.03,0.00019178,2]
[347496819,1735877436803,-556.94,0.00019178,2]
[347496820,1735877436813,-9572.03,0.00019178,2]
[347496821,1735877436822,-9572.03,0.00019178,2]
[347496822,1735877436831,-9572.03,0.00019178,2]
[347496823,1735877436840,-9572.03,0.00019178,2]
[347496824,1735877436849,-9572.03,0.00019178,2]
[347496825,1735877436859,-500.0,0.00019178,2]
[347496826,1735877436869,-9572.03,0.00019178,2]
[347496827,1735877436878,-9572.03,0.00019178,2]
[347496828,1735877436888,-901.12,0.00019178,2]
[347496829,1735877436897,-9572.03,0.00019178,2]
[347496830,1735877436907,-9572.03,0.00019178,2]
[347496831,1735877436916,-9572.03,0.00019178,2]
[347496832,1735877436924,-500.0,0.00019178,2]
[347496833,1735877436934,-382.19431391,0.00019178,2]
[347496834,1735877436943,-9572.03,0.00019178,2]
[347496835,1735877436954,-9572.03,0.00019178,2]
[347496836,1735877436963,-9572.03,0.00019178,2]
[347496837,1735877436973,-9572.03,0.00019178,2]
[347496838,1735877436984,-993.34,0.00019178,2]
[347496839,1735877436996,-9572.03,0.00019178,2]
[347496840,1735877437005,-813.79,0.00019178,2]
[347496841,1735877437014,-9572.03,0.00019178,2]
[347496842,1735877437023,-9572.03,0.00019178,2]
[347496843,1735877437034,-1935.48,0.00019178,2]
[347496844,1735877437045,-9572.03,0.00019178,2]
[347496845,1735877437054,-1744.67,0.00019178,2]
[347496846,1735877437066,-9572.03,0.00019178,2]
[347496847,1735877437075,-9572.03,0.00019178,2]
[347496848,1735877437085,-5437.58020022,0.00019178,2]
[347496849,1735877437200,-2041.31023611,0.00019178,2]
[347496850,1735877437212,-2093.13956367,0.00019178,2]
[347496851,1735877437222,-5679.86286904,0.00019178,2]
[347496854,1735877438746,-1154.79053876,0.00018986,2]
[347497011,1735877440671,-5023.20343684,0.00018986,2]
[347497013,1735877440681,-3892.16713096,0.00019178,2]
[347497015,1735877440690,-9572.11279072,0.00019178,2]
[347497017,1735877440699,-500.0,0.00019178,2]
[347497019,1735877440708,-500.0,0.00019178,2]
[347497021,1735877440717,-174.202041,0.00019178,2]
[347497023,1735877440727,-170.3068,0.00019178,2]
[347497025,1735877440736,-178.355352,0.00019178,2]
[347497027,1735877440745,-302.84859387,0.0001919,2]
[347497029,1735877440754,-151.0,0.000192,2]
[347497031,1735877440763,-151.0,0.000192,2]
[347497033,1735877440774,-151.0,0.000192,2]
[347497035,1735877440783,-151.0,0.000193,2]
[347497036,1735877440793,-151.0,0.000193,2]
[347497037,1735877440802,-151.0,0.000193,2]
[347497038,1735877440811,-302.84859387,0.0001938,2]
[347497039,1735877440820,-151.0,0.000194,2]
[347497040,1735877440830,-1039.79,0.00019451,3]
[347497041,1735877440839,-1039.79,0.00019451,3]
[347497042,1735877440848,-1039.79,0.00019451,3]
[347497043,1735877440858,-1039.79,0.00019451,3]
[347497044,1735877440867,-1039.79,0.00019451,3]
[347497045,1735877440876,-575.4442009,0.00019451,2]
[347497046,1735877440885,-151.0,0.00019452,2]
[347497047,1735877440895,-151.0,0.00019452,2]
[347497048,1735877440904,-4368.28,0.00019452,3]
[347497049,1735877440912,-500.0,0.00019452,3]
[347497050,1735877440921,-447.2338811,0.00019452,3]
[347497051,1735877440931,-1398.820419,0.00019452,2]
[347497052,1735877440939,-1398.820419,0.00019452,2]
[347497053,1735877440949,-152.531255,0.00019452,2]
[347497054,1735877440958,-500.0,0.00019452,3]
[347497055,1735877440966,-500.0,0.00019452,3]
[347497056,1735877440975,-151.0,0.00019452,2]
[347497057,1735877440989,-500.0,0.00019452,3]
[347497058,1735877440999,-197.861662,0.00019452,2]
[347497059,1735877441008,-394.026675,0.00019452,2]
[347497060,1735877441017,-394.026675,0.00019452,2]
[347497061,1735877441027,-500.0,0.00019452,3]
[347497062,1735877441036,-500.0,0.00019452,3]
[347497063,1735877441046,-500.0,0.00019452,3]
[347497064,1735877441055,-500.0,0.00019452,3]
[347497065,1735877441066,-151.0,0.00019452,2]
[347497066,1735877441077,-500.0,0.00019452,3]
[347497067,1735877441087,-159.09,0.00019452,3]
[347497068,1735877441096,-151.0,0.00019452,2]
[347497070,1735877441106,-341.840284,0.00019452,2]
[347497072,1735877441115,-341.840284,0.00019452,2]
[347497074,1735877441124,-500.0,0.00019452,3]
[347497076,1735877441133,-517.91,0.00019452,3]
[347497078,1735877441142,-289.250468,0.00019452,2]
[347497080,1735877441151,-289.250468,0.00019452,2]
[347497082,1735877441160,-500.0,0.00019452,3]
[347497084,1735877441170,-796.35,0.00019452,3]
[347497086,1735877441180,-500.0,0.00019452,3]
[347497088,1735877441189,-799.97,0.00019452,3]
[347497090,1735877441199,-500.0,0.00019452,3]
[347497092,1735877441209,-899.72,0.00019452,3]
[347497094,1735877441218,-500.0,0.00019452,3]
[347497096,1735877441228,-567.58922841,0.00019452,3]
[347497098,1735877441239,-556.18,0.00019452,3]
[347497100,1735877441248,-525.66,0.00019452,3]
[347497102,1735877441259,-500.0,0.00019452,3]
[347497104,1735877441268,-552.318228,0.00019452,2]
[347497106,1735877441278,-500.0,0.00019452,3]
[347497108,1735877441287,-552.318228,0.00019452,2]
[347497110,1735877441297,-500.0,0.00019452,3]
[347497112,1735877441306,-500.0,0.00019452,3]
[347497114,1735877441315,-500.0,0.00019452,3]
[347497116,1735877441325,-355.721939,0.00019452,2]
[347497118,1735877441334,-500.0,0.00019452,3]
[347497120,1735877441344,-355.721939,0.00019452,2]
[347497122,1735877441353,-500.0,0.00019452,3]
[347497124,1735877441362,-500.0,0.00019452,3]
[347497126,1735877441372,-500.0,0.00019452,3]
[347497128,1735877441381,-3133.34,0.00019452,3]
[347497130,1735877441390,-500.0,0.00019452,3]
[347497133,1735877441401,-630.34271102,0.00019452,3]
[347497135,1735877441411,-500.0,0.00019452,3]
[347497137,1735877441420,-543.17,0.00019452,3]
[347497139,1735877441429,-500.0,0.00019452,3]
[347497141,1735877441438,-500.0,0.00019452,3]
[347497142,1735877441448,-500.0,0.00019452,3]
[347497145,1735877441458,-500.0,0.00019452,3]
[347497147,1735877441467,-500.0,0.00019452,3]
[347497148,1735877441476,-151.0,0.00019452,2]
[347497151,1735877441487,-3382.97,0.00019452,3]
[347497152,1735877441497,-509.78816325,0.00019452,3]
[347497154,1735877441506,-500.0,0.00019452,3]
[347497156,1735877441515,-151.0,0.00019452,2]
[347497158,1735877441525,-1075.76,0.00019452,3]
[347497160,1735877441534,-898.66,0.00019452,3]
[347497162,1735877441543,-500.0,0.00019452,3]
[347497164,1735877441552,-956.94,0.00019452,3]
[347497166,1735877441561,-25911.43,0.00019452,3]
[347497168,1735877441570,-1111.14,0.00019452,3]
[347497170,1735877441579,-500.0,0.00019452,3]
[347497172,1735877441588,-596.15,0.00019452,3]
[347497175,1735877441597,-754.97,0.00019452,3]
[347497177,1735877441606,-1248.46,0.00019452,3]
[347497179,1735877441615,-2827.51,0.00019452,3]
[347497181,1735877441624,-570.18,0.00019452,3]
[347497183,1735877441633,-151.0,0.00019452,2]
[347497185,1735877441642,-990.36,0.00019452,3]
[347497187,1735877441651,-699.31,0.00019452,3]
[347497189,1735877441660,-500.0,0.00019452,3]
[347497191,1735877441669,-500.0,0.00019452,3]
[347497193,1735877441679,-500.0,0.00019452,3]
[347497195,1735877441688,-500.0,0.00019452,3]
[347497197,1735877441698,-1126.67,0.00019452,3]
[347497199,1735877441708,-412.92442508,0.00019452,3]
[347497201,1735877441717,-581.99,0.00019452,3]
[347497203,1735877441726,-1778.15,0.00019452,3]
[347497205,1735877441737,-1075.91,0.00019452,3]
[347497207,1735877441746,-6463.31,0.00019452,3]
[347497209,1735877441755,-907.68,0.00019452,3]
[347497211,1735877441764,-500.0,0.00019452,3]
[347497213,1735877441773,-532.97,0.00019452,3]
[347497215,1735877441782,-500.0,0.00019452,3]
[347497217,1735877441791,-1987.78,0.00019452,3]
[347497219,1735877441800,-867.65,0.00019452,3]
[347497221,1735877441809,-500.0,0.00019452,3]
[347497223,1735877441818,-1784.67,0.00019452,3]
[347497225,1735877441826,-500.0,0.00019452,3]
[347497227,1735877441835,-901.12,0.00019452,3]
[347497229,1735877441845,-500.0,0.00019452,3]
[347497231,1735877441854,-813.79,0.00019452,3]
[347497233,1735877441863,-993.34,0.00019452,3]
[347497235,1735877441872,-1935.48,0.00019452,3]
[347497250,1735877442006,-1744.67,0.00019452,3]
[347497252,1735877442028,-500.0,0.00019452,3]
[347497254,1735877442045,-500.0,0.00019452,3]
[347497256,1735877442054,-2564.61,0.000195,2]
[347497258,1735877442063,-151.0,0.000195,2]
[347497260,1735877442073,-151.0,0.000195,2]
[347497262,1735877442083,-151.0,0.000195,2]
[347497264,1735877442092,-301.63889319,0.0001957,2]
[347497266,1735877442100,-151.0,0.00019575,2]
[347497268,1735877442109,-151.0,0.00019575,2]
[347497270,1735877442119,-174.202041,0.00019575,2]
[347497272,1735877442128,-2088.0,0.00019576,2]
[347497274,1735877442137,-534.0,0.00019576,2]
[347497276,1735877442146,-2321.0,0.00019576,2]
[347497278,1735877442156,-151.0,0.000196,2]
[347497280,1735877442165,-9929.55,0.000196,2]
[347497282,1735877442174,-7118.78,0.000196,2]
[347497284,1735877442183,-253.19657,0.000196,2]
[347497286,1735877442192,-223.582208,0.000196,2]
[347497288,1735877442201,-341.840284,0.000196,2]
[347497290,1735877442210,-341.840284,0.000196,2]
[347497292,1735877442219,-289.250468,0.000196,2]
[347497294,1735877442228,-289.250468,0.000196,2]
[347497296,1735877442238,-151.0,0.000196,2]
[347497298,1735877442248,-552.318228,0.000196,2]
[347497300,1735877442256,-552.318228,0.000196,2]
[347497302,1735877442266,-151.0,0.000196,2]
[347497304,1735877442275,-151.0,0.000197,2]
[347497306,1735877442284,-151.0,0.000197,2]
[347497308,1735877442293,-151.0,0.000197,2]
[347497309,1735877442302,-1039.79,0.00019725,3]
[347497310,1735877442312,-1039.79,0.00019725,3]
[347497311,1735877442321,-1039.79,0.00019725,3]
[347497312,1735877442331,-1039.79,0.00019725,3]
[347497314,1735877442341,-151.0,0.00019726,2]
[347497316,1735877442351,-151.0,0.00019726,2]
[347497318,1735877442360,-4368.28,0.00019726,3]
[347497320,1735877442369,-809.799703,0.00019726,2]
[347497322,1735877442378,-809.799703,0.00019726,2]
[347497324,1735877442387,-151.0,0.00019726,2]
[347497325,1735877442396,-151.0,0.00019726,2]
[347497326,1735877442405,-500.0,0.00019726,3]
[347497327,1735877442416,-1398.820419,0.00019726,2]
[347497328,1735877442425,-1398.820419,0.00019726,2]
[347497329,1735877442434,-500.0,0.00019726,3]
[347497330,1735877442444,-500.0,0.00019726,3]
[347497331,1735877442453,-151.0,0.00019726,2]
[347497332,1735877442462,-500.0,0.00019726,3]
[347497333,1735877442472,-394.026675,0.00019726,2]
[347497334,1735877442483,-394.026675,0.00019726,2]
[347497335,1735877442492,-500.0,0.00019726,3]
[347497336,1735877442502,-567.648933,0.00019726,3]
[347497337,1735877442511,-486.5,0.00019726,3]
[347497338,1735877442520,-500.0,0.00019726,3]
[347497339,1735877442531,-500.0,0.00019726,3]
[347497340,1735877442542,-500.0,0.00019726,3]
[347497341,1735877442551,-517.91,0.00019726,3]
[347497342,1735877442561,-500.0,0.00019726,3]
[347497343,1735877442571,-796.35,0.00019726,3]
[347497344,1735877442581,-500.0,0.00019726,3]
[347497345,1735877442591,-799.97,0.00019726,3]
[347497346,1735877442600,-508.44016279,0.00019726,3]
[347497347,1735877442609,-899.72,0.00019726,3]
[347497348,1735877442618,-500.0,0.00019726,3]
[347497349,1735877442628,-556.18,0.00019726,3]
[347497350,1735877442637,-525.66,0.00019726,3]
[347497351,1735877442646,-500.0,0.00019726,3]
[347497352,1735877442655,-500.0,0.00019726,3]
[347497353,1735877442664,-500.0,0.00019726,3]
[347497354,1735877442673,-500.0,0.00019726,3]
[347497355,1735877442682,-500.0,0.00019726,3]
[347497356,1735877442691,-355.721939,0.00019726,2]
[347497357,1735877442700,-500.0,0.00019726,3]
[347497358,1735877442709,-355.721939,0.00019726,2]
[347497359,1735877442718,-500.0,0.00019726,3]
[347497360,1735877442727,-500.0,0.00019726,3]
[347497361,1735877442739,-3133.34,0.00019726,3]
[347497362,1735877442748,-500.0,0.00019726,3]
[347497363,1735877442757,-500.0,0.00019726,3]
[347497364,1735877442766,-543.17,0.00019726,3]
[347497365,1735877442775,-500.0,0.00019726,3]
[347497366,1735877442784,-190.29821304,0.00019726,3]
[347497367,1735877442793,-500.0,0.00019726,3]
[347497368,1735877442802,-500.0,0.00019726,3]
[347497369,1735877442811,-500.0,0.00019726,3]
[347497370,1735877442820,-3382.97,0.00019726,3]
[347497371,1735877442831,-151.0,0.00019726,2]
[347497372,1735877442840,-500.0,0.00019726,3]
[347497373,1735877442850,-240.189742,0.00019726,2]
[347497374,1735877442859,-1075.76,0.00019726,3]
[347497375,1735877442869,-898.66,0.00019726,3]
[347497376,1735877442878,-500.0,0.00019726,3]
[347497377,1735877442887,-956.94,0.00019726,3]
[347497378,1735877442896,-24927.56830136,0.00019726,3]
[347497379,1735877442915,-332.91988524,0.00019726,3]
[347497384,1735877443813,-403.671,0.00019162,2]
[347497385,1735877443823,-174.202041,0.00019178,2]
[347497386,1735877443833,-174.202041,0.00019575,2]
[347497387,1735877443842,-650.9418134,0.00019726,3]
[347497388,1735877443851,-160.754126,0.00019726,3]
[347497389,1735877443863,-421.56,0.00019726,3]
[347497390,1735877443878,-528.825874,0.00019726,3]
[347497391,1735877443888,-500.0,0.00019726,3]
[347497392,1735877443897,-596.15,0.00019726,3]